Cogmind - Beta 13 @@@ ROGUE MODE // 2024.04.12 @ 00:38:59 Player: Exceptionally Mediocre Result: Destroyed by as-34080 with Assembled Rifle Performance ------------- Evolutions (0) 0 Regions Visited (4) 800 Robots Destroyed (44) 220 Value Destroyed (759) 759 Prototype IDs (2) 40 Alien Tech Used (0) 0 Bonus (-363) -363 TOTAL SCORE: 1456 Bonus ------- Follower Combat Kills 50 Friendly Fire -413 Cogmind --------- Core Integrity 0/250 Matter 262/300 Energy 246/250 System Corruption 4% Temperature Cool (0) Movement Rolling (110) Ox2 Location -9/Mines Parts ------- > --- POWER (1) -------- Ion Engine > --- PROPULSION (2) --- Wheel Wheel > --- UTILITY (2) ------ Improved Heat Sink High-capacity Storage Unit > --- WEAPON (2) ------- Makeshift Shrapnel Gun Makeshift Sword > --- INVENTORY (20) --- Light Nuclear Core Light Nuclear Core Wheel Wheel Wheel Medium Matter Pod (100) Signal Interpreter Targeting Computer Targeting Computer Makeshift Transmission Jammer Hacking Suite Decoy Drone Bay Beam Cannon Beam Cannon Light Assault Rifle Makeshift Sword Makeshift Spear Peak State ------------ > --- POWER ------------ Ion Engine > --- PROPULSION ------- Wheel Wheel > --- UTILITY ---------- Improved Heat Sink High-capacity Storage Unit > --- WEAPON ----------- Makeshift Shrapnel Gun Makeshift Sword > --- INVENTORY -------- Light Nuclear Core Light Nuclear Core Wheel Wheel Wheel Medium Matter Pod Signal Interpreter Targeting Computer Targeting Computer Makeshift Transmission Jammer Hacking Suite Decoy Drone Bay Beam Cannon Beam Cannon Light Assault Rifle Makeshift Sword Makeshift Spear [Rating: 19] Favorites ----------- Power Ion Engine Engine Ion Engine Propulsion Wheel Wheel Wheel Utility Improved Heat Sink Device Improved Heat Sink Storage High-capacity Storage Unit Processor Machine Analyzer Weapon Grenade Launcher Energy Gun Particle Gun Energy Cannon Beam Cannon Ballistic Gun Assault Rifle Launcher Grenade Launcher Special Weapon Mining Laser Slashing Weapon Makeshift Sword Build | -11 -10 -10 -10 -9 ------- Run | Yrd Mat Min Exi Min Slots Evolved . | . . . . . Power . | . . . . . Propulsion . | . . . . . Utility . | . . . . . Weapon . | . . . . . Parts Attached 39 | 8 15 8 4 4 Power 7 | 1 4 1 1 . Engine 7 | 1 4 1 1 . Core . | . . . . . Reactor . | . . . . . Propulsion 12 | 2 5 2 1 2 Treads . | . . . . . Leg . | . . . . . Wheel 12 | 2 5 2 1 2 Hover . | . . . . . Flight . | . . . . . Utility 7 | 2 4 . 1 . Device 3 | 1 1 . 1 . Storage 3 | 1 2 . . . Processor 1 | . 1 . . . Hackware . | . . . . . Protection . | . . . . . Artifact . | . . . . . Weapon 13 | 3 2 5 1 2 Energy Gun 3 | 1 1 1 . . Energy Cannon 1 | . 1 . . . Ballistic Gun 4 | 2 . 1 . 1 Ballistic Cannon . | . . . . . Launcher 3 | . . 2 . 1 Special Weapon 1 | . . 1 . . Impact Weapon . | . . . . . Slashing Weapon 1 | . . . 1 . Piercing Weapon . | . . . . . Special Melee Weapon . | . . . . . Unidentified Prototypes . | . . . . . Parts Lost 8 | . 4 1 1 2 Power . | . . . . . Propulsion 4 | . 2 1 1 . Utility . | . . . . . Weapon 4 | . 2 . . 2 Highest Loss Streak 2 | . 2 1 1 2 To Critical Strikes . | . . . . . Average Slot Usage (%) 99 | . 99 98 99 100 Engine 13 | . 14 14 13 14 Wheel 28 | . 28 28 28 28 Device 13 | . 13 14 14 14 Storage 14 | . 14 14 14 14 Energy Gun 3 | . 7 3 . . Energy Cannon 2 | . 5 . . . Ballistic Gun 9 | . 14 7 6 . Launcher 8 | . . 13 14 14 Slashing Weapon 3 | . . . 7 14 Naked Turns . | . . . . . Heaviest Build 53 | 15 52 53 51 51 Greatest Support 26 | 26 26 20 20 26 Greatest Overweight (x) 2 | . 2 2 2 2 Average Overweight (x) 1 | . . 2 2 1 Largest Inventory Capacity 20 | 8 20 20 20 20 Average Capacity 17 | 7 14 20 20 20 Most Carried 20 | 8 20 20 20 20 Average Carried 16 | 3 13 19 19 19 Final Capacity 20 | 8 20 20 20 20 Final Carried 20 | 8 19 20 19 18 Class Distribution -------------------- 58% | Scavenger-Mutant 27% | Commander-Mutant 14% | Mutant Dominant Class ---------------- Scavenger-Mutant | -10/Materials Scavenger-Mutant | -10/Mines Commander-Mutant | -10/Exiles Commander-Mutant | -9/Mines Resources | -11 -10 -10 -10 -9 ----------- Run | Yrd Mat Min Exi Min Matter Collected 1285 | 402 503 222 116 42 Remotely . | . . . . . Salvage Created 1459 | 160 607 199 338 155 Parts 95 | 9 46 16 6 18 Haulers Intercepted 2 | . 2 . . . Recyclers Shooed 1 | 1 . . . . Parts Field Recycled . | . . . . . Retrieved Matter . | . . . . . Parts Self-Destructed . | . . . . . Prevented . | . . . . . Kills | -11 -10 -10 -10 -9 ------- Run | Yrd Mat Min Exi Min Combat Hostiles Destroyed 28 | . 11 12 . 5 Guns 11 | . 9 2 . . Cannons 2 | . 2 . . . AOE 15 | . . 10 . 5 Classes Destroyed 11 | 3 7 . . 1 Worker 3 | 1 1 . . 1 Builder 2 | . 1 . . 1 Tunneler 5 | 2 . 1 . 2 Hauler 2 | . 2 . . . Recycler 2 | 1 . . . 1 Mechanic 1 | . 1 . . . Operator 1 | . 1 . . . Watcher 3 | . 3 . . . Swarmer 9 | . 3 6 . . Grunt 16 | . 8 6 1 1 Assembled 5 | . . . . 5 Best Kill Streak 6 | 2 5 4 . 6 Combat Bots Only 5 | . 3 4 . 5 Max Kills in Single Turn 3 | 1 1 3 1 3 Gunslinging . | . . . . . Exploded 3 | . . 3 . 2 Melee . | . . . . . Uniques/NPCs Destroyed . | . . . . . Combat | -11 -10 -10 -10 -9 -------- Run | Yrd Mat Min Exi Min Hostile Shots Fired 102 | . 73 21 . 8 Missed 21 | . 15 5 . 1 Damage Taken 1158 | . 686 199 95 178 Core 260 | . 139 69 20 32 Absorbed by Shields . | . . . . . Regen/Repaired (Parts) 5 | . 5 . . . Core Remaining (%) 100 | 100 . . . . Volleys Fired 98 | 12 59 22 1 4 Largest 2 | 2 2 2 1 1 Hottest 125 | 40 125 100 30 33 Shots Fired 174 | 24 117 26 3 4 Gun 143 | 24 107 11 . 1 Cannon 10 | . 10 . . . Launcher 18 | . . 12 3 3 Special 3 | . . 3 . . Kinetic 118 | 24 91 2 . 1 Thermal 38 | . 26 12 . . Explosive 18 | . . 12 3 3 Electromagnetic . | . . . . . Robot Hit Streak 13 | 4 13 5 3 1 Robot Miss Streak 6 | 2 6 2 1 2 Penetration Max . | . . . . . Secondary Targets 2 | . 2 . . . Max Gunslinging Chain 1 | . 1 . . . Shots Hit Robots 126 | 13 73 8 25 7 Core Hits 87 | 5 32 21 12 17 Critical Kills . | . . . . . Critical Parts Destroyed . | . . . . . Critical Strikes 1 | . . 1 . . Burn 1 | . . 1 . . Melee Attacks 33 | . . . 27 6 Impact . | . . . . . Slashing 33 | . . . 27 6 Piercing . | . . . . . Sneak Attacks 5 | . . . . 5 Combat Hostiles . | . . . . . Follow-up Attacks . | . . . . . Damage Inflicted 4852 | 154 983 831 2134 750 Guns 1170 | 154 931 76 . 9 Cannons 52 | . 52 . . . Explosions 1344 | . . 755 201 388 Melee 2286 | . . . 1933 353 Ramming . | . . . . . Kinetic 918 | 154 742 13 . 9 Thermal 304 | . 241 63 . . Explosive 1344 | . . 755 201 388 Electromagnetic . | . . . . . Impact . | . . . . . Slashing 2286 | . . . 1933 353 Piercing . | . . . . . Highest Corruption 4 | . 4 4 4 4 Average Corruption 3 | . 1 4 4 4 Corruption Purged . | . . . . . Corruption Blocked . | . . . . . Effects 42 | . 5 14 18 5 Message Errors 13 | . 3 5 4 1 Matter Fused 3 | . 1 . 1 1 Heat Flow Errors 6 | . 1 2 3 . Energy Discharges 5 | . . 1 2 2 Parts Rejected 3 | . . 1 2 . Data Loss (minor) 5 | . . 2 2 1 Data Loss (major) 3 | . . 1 2 . Misfires 2 | . . . 2 . Alerts 1 | . . 1 . . Weapon Failures 1 | . . 1 . . Overload Shots . | . . . . . Overflow Damage 464 | . . 5 414 45 Projectiles . | . . . . . Explosions 25 | . . 5 11 9 Melee 439 | . . . 403 36 Knockbacks . | . . . . . Impact . | . . . . . Kinetic . | . . . . . Secondary . | . . . . . Self-Inflicted Damage 183 | . . 24 95 64 Shots 6 | . . 1 3 2 Rammed . | . . . . . Targets Rammed . | . . . . . Kicked . | . . . . . Crushed . | . . . . . Highest Temperature 245 | . 245 189 211 . Average Temperature 54 | . 38 88 96 . Received Heat Transfer 371 | . 297 54 . 20 Siege Activations . | . . . . . Robots Corrupted . | . . . . . Combat Hostiles . | . . . . . Parts Fried . | . . . . . Impact Corruptions . | . . . . . Robots Melted . | . . . . . Combat Hostiles . | . . . . . Parts Melted 1 | . 1 . . . Heat Transferred 777 | . 555 222 . . Parts Sabotaged . | . . . . . Parts Stolen . | . . . . . Parts Stripped . | . . . . . Power Chain Reactions . | . . . . . Alert | -11 -10 -10 -10 -9 ------- Run | Yrd Mat Min Exi Min Peak Influence 349 | 20 260 349 . 30 Initial 34 | . 13 34 . . Average 137 | 9 112 232 . 15 Maximum Alert Level 1 | . 1 1 . . Low Security (%) 66 | 100 77 34 . 100 Level 1 33 | . 22 65 . . Level 2 . | . . . . . Level 3 . | . . . . . Level 4 . | . . . . . Level 5 . | . . . . . High Security . | . . . . . Max Security . | . . . . . Squads Dispatched 2 | . 2 . . . Investigation 2 | . 2 . . . Extermination . | . . . . . Reinforcement . | . . . . . Assault . | . . . . . Garrison . | . . . . . Intercept . | . . . . . Searches Triggered . | . . . . . Construction Impeded . | . . . . . Haulers Reinforced . | . . . . . Active Scanning Responses . | . . . . . Cargo Convoy Interrupts . | . . . . . Stealth | -11 -10 -10 -10 -9 --------- Run | Yrd Mat Min Exi Min Distress Signals 2 | . 2 . . . Communications Jammed . | . . . . . Distress Signals . | . . . . . Times Spotted 42 | . 19 12 . 11 Peak Tracking Total 7 | . 5 4 . 7 Tactical Retreats 1 | . 1 . . . Traps | -11 -10 -10 -10 -9 ------- Run | Yrd Mat Min Exi Min Traps Triggered 2 | . 2 . . . Indirectly . | . . . . . Trap Hack Attempts . | . . . . . Triggered . | . . . . . Disarmed . | . . . . . Reprogrammed . | . . . . . Reused . | . . . . . Traps Extracted . | . . . . . Installed . | . . . . . Triggered . | . . . . . Machines | -11 -10 -10 -10 -9 ---------- Run | Yrd Mat Min Exi Min Machines Disabled 2 | . . . 2 . Max in Single Turn 2 | . . . 2 . Machines Repaired . | . . . . . Machines Dismantled . | . . . . . Machines Sabotaged . | . . . . . Overloaded Fab Kills . | . . . . . Hacking | -11 -10 -10 -10 -9 --------- Run | Yrd Mat Min Exi Min Machines Accessed 7 | . 6 1 . . Terminals 4 | . 4 . . . Fabricators . | . . . . . Repair Stations 1 | . 1 . . . Recycling Units 1 | . 1 . . . Scanalyzers . | . . . . . Garrison Access . | . . . . . Total Hacks 17 | . 16 1 . . Successful 10 | . 9 1 . . Failed 7 | . 7 . . . Catastrophic 1 | . 1 . . . Database Lockouts . | . . . . . Manual 12 | . 11 . 1 . Terminals 12 | . 12 . . . Fabricators . | . . . . . Repair Stations 2 | . 2 . . . Recycling Units 2 | . 2 . . . Scanalyzers . | . . . . . Garrison Access . | . . . . . Terminal Hacks 2 | . 1 1 . . Prototype ID Bank 1 | . 1 . . . Open Door 1 | . . 1 . . Fabricator Hacks . | . . . . . Repair Station Hacks 2 | . 2 . . . Scan Component 1 | . 1 . . . Repair 1 | . 1 . . . Recycling Unit Hacks 1 | . 1 . . . Retrieve Components 1 | . 1 . . . Scanalyzer . | . . . . . Garrison Access Hacks . | . . . . . Unauthorized Hacks 5 | . 5 . . . Terminals 5 | . 5 . . . Assimilate 2 | . 2 . . . Botnet 3 | . 3 . . . Fabricators . | . . . . . Repair Stations . | . . . . . Recycling Units . | . . . . . Scanalyzers . | . . . . . Garrison Access . | . . . . . Data Cores Recovered 1 | . 1 . . . Used . | . . . . . Hacking Detections 4 | . 4 . . . Full Trace Events 3 | . 3 . . . Feedback Events 1 | . 1 . . . Corruption 1 | . 1 . . . Feedback Blocked . | . . . . . Robot Schematics Acquired . | . . . . . Robots Built . | . . . . . Authchips . | . . . . . Time . | . . . . . Total Robot Build Rating . | . . . . . Part Schematics Acquired . | . . . . . Parts Built . | . . . . . Authchips . | . . . . . Time . | . . . . . Total Part Build Rating . | . . . . . Parts Repaired 1 | . 1 . . . Time 26 | . 26 . . . Parts Recycled . | . . . . . Recycled Matter . | . . . . . Retrieved Matter . | . . . . . Retrieved Components 1 | . 1 . . . Parts Scanalyzed . | . . . . . Part Schematics Acquired . | . . . . . Parts Damaged . | . . . . . Bothacking | -11 -10 -10 -10 -9 ------------ Run | Yrd Mat Min Exi Min Used RIF Installer . | . . . . . Robots Hacked . | . . . . . Non-combat . | . . . . . Combat . | . . . . . Robot Hacks Applied . | . . . . . Relay Couplers Released . | . . . . . Fabnet Peak Effective % . | . . . . . Robots Rewired 2 | . . . 2 . Allies Hacked . | . . . . . Hacks Repelled . | . . . . . Allies | -11 -10 -10 -10 -9 -------- Run | Yrd Mat Min Exi Min Total Allies 5 | . . 3 2 . Largest Group 5 | . . 3 5 4 Highest-Rated Group 56 | . . 40 56 48 Highest-Rated Ally 16 | . . 16 16 16 Total Orders . | . . . . . Ally Attacks 15 | . . 6 . 9 Total Damage 170 | . . 81 . 89 Kills 3 | . . 2 . 1 Allies Corrupted . | . . . . . Allies Melted . | . . . . . Intel | -11 -10 -10 -10 -9 ------- Run | Yrd Mat Min Exi Min Robot Analysis Total . | . . . . . Derelict Logs Recovered 2 | . . 1 . 1 Drone Launches . | . . . . . Drone Recoveries . | . . . . . Exploration | -11 -10 -10 -10 -9 ------------- Run | Yrd Mat Min Exi Min Turns Passed 2977 | 146 1071 742 812 206 Spaces Moved 2348 | 102 822 605 657 162 Core 2 | 2 . . . . Treads . | . . . . . Legs . | . . . . . Wheels 2346 | 100 822 605 657 162 Hover . | . . . . . Flight . | . . . . . Fastest Speed 50 | 50 80 110 110 105 Average Speed 103 | 86 95 110 110 109 Slowest Speed 110 | 90 110 110 110 110 Overloaded Moves . | . . . . . Propulsion Burnouts . | . . . . . Robots Hopped . | . . . . . Cave-ins Triggered . | . . . . . Exploration Rate (%) 58 | 4 80 90 90 30 Regions Visited 4 Branch Regions 3 Pre-discovered Areas 2 | . . 1 . 1 Known Exits Taken . | . . . . . Unknown Exits Taken 4 | 1 1 1 1 . Scrap Searched 1 | . . 1 . . Spaces Dug 1 | . . . 1 . Terrain Destroyed 164 | . . 119 14 31 Melee 1 | . . . 1 . Projectile 1 | . . 1 . . AOE 162 | . . 118 13 31 Terrain Rammed . | . . . . . Walls Destroyed . | . . . . . Machines Disabled . | . . . . . Actions | -11 -10 -10 -10 -9 --------- Run | Yrd Mat Min Exi Min Total 2690 | 132 1003 652 718 185 Wait 63 | . 57 6 . . Move 2344 | 101 821 604 656 162 Hop . | . . . . . Pick Up 54 | 11 29 6 4 4 Fast Attach 9 | 4 3 . 2 . Attach 12 | 3 4 2 1 2 Detach 1 | . 1 . . . Swap 18 | 1 8 6 1 2 Drop 36 | . 21 6 4 5 Fire 98 | 12 59 22 1 4 Melee 33 | . . . 27 6 Ram . | . . . . . Kick . | . . . . . Crush . | . . . . . Escape Stasis . | . . . . . Rewire 22 | . . . 22 . Trap . | . . . . . Miscellaneous . | . . . . . Route ------- -11/Scrapyard -10/Materials (discovered 3 exits: [*Mat x2] / *Min) -10/Mines (discovered 3 exits: [*Mat x2] / *Exi) -10/Exiles -9/Mines History --------- Turn | Location | Event 28 | -11/Scrapyard | Discovered new exit (range 15) 147 | -11/Scrapyard | Entered Materials 214 | -10/Materials | Discovered new exit (range 12) 309 | -10/Materials | Build established: Mutant 401 | -10/Materials | Repaired Transport Network Coupler 412 | -10/Materials | Discovered new exit (range 15) 531 | -10/Materials | Discovered new exit (range 16) 646 | -10/Materials | Build established: Scavenger-Mutant 767 | -10/Materials | Core integrity fell below 50% 1218 | -10/Materials | Entered Mines 1225 | -10/Mines | Received a Rocket Launcher from a helpful Derelict 1334 | -10/Mines | Excavation squad dispatched 1334 | -10/Mines | A large section of the Mines collapsed 1440 | -10/Mines | Learned location of Recycling (-9) 1450 | -10/Mines | Assisted by bots powering up and referring to "LRC-V3" 1474 | -10/Mines | Discovered new exit (range 6) 1725 | -10/Mines | Discovered new exit (range 11) 1727 | -10/Mines | Core integrity fell below 20% 1866 | -10/Mines | Found the Drone Emporium 1875 | -10/Mines | Found Prototype Device 1953 | -10/Mines | Deemed a non-threat by the Exiles lab entrance 1954 | -10/Mines | Discovered new exit (range 5) 1960 | -10/Mines | Entered Exiles 1960 | -10/Exiles | Found Exiles lab destroyed 1960 | -10/Exiles | Accompanied by 3 allies 2458 | -10/Exiles | Build established: Commander-Mutant 2759 | -10/Exiles | Discovered new exit (range 12) 2772 | -10/Exiles | Entered Mines 2772 | -9/Mines | Accompanied by 4 allies 2785 | -9/Mines | Met a Derelict bent on vengeance 2937 | -9/Mines | A weapon hastily lodged in a ceiling crevice suddenly fell to the ground 2953 | -9/Mines | Assembled infested the area 2958 | -9/Mines | Assisted by a Guerilla fighting off Assembled 2978 | -9/Mines | Destroyed by as-34080 with Assembled Rifle Last Messages --------------- 02968_ as-68685 suffers critical hit (Burn). 02969_ T-07 Excavator is excavating. 02969_ as-68685 destroyed. 02969_ as-52462 destroyed. 02970_ Acquired 10 matter. 02970_ Grenade Launcher destroyed. 02972_ Acquired 4 matter. 02972_ T-07 Excavator is excavating. 02972_ Destroyed Asb. Hover Unit. 02972_ as-03343 destroyed. 02972_ Destroyed Asb. Hover Unit. 02972_ as-10647 destroyed. 02972_ Trooper 1b destroyed. 02972_ T-07 Excavator is excavating. 02974_ as-84059 destroyed. 02975_ Mercenary 1c destroyed. 02975_ Rocket Launcher destroyed. 02975_ as-75817 destroyed. 02976_ T-07 Excavator is excavating. 02978_ Trooper 1a destroyed. Map ----- +----------------------------------------------------+ | | | | | | | | | | | | | | | | | | | | | | | | | ?????????????????????????????????????????? | | ?????????????????????????????????????????? | | ?????????????????????????????????????????? | | ?????????????????????????????????????????? | | ?????????????????????????????????????????? | | ???????????????????##??????? ???????????? | | ??????????????????# ##????? ??????????? | | ???????????????##? ##?? ??????????? | | ???????????????# # #? ??????????? | | ???????????????# # ????????????? | | ???????# ?????## aaa ??????????????? | | ??????## ### ?????????????????? | | ??????# a #???????????????????? | | ??????# t t @%[#????????????????????? | | ??????# #### %*!#????????????????????? | | ???????????????### ##????????????????????? | | ?????????????????#%#?????????????????????? | | ??????####???????#!#?????????????????????? | | ?????## #########!#?????????????????????? | | ????## #?????????????????????? | | ????# ###########?????????????????????? | | ????# ##???????????????????????????????? | | ????# *##????????????????????????????????? | | ???## #?????????????????????????????????? | | ??## #######???????????????????????????? | | ??# #?????????????????????????? | | ??# ###### #?????????????????????????? | | ??## ##?????????????????????????????????? | | ???# #??????????????????????????????????? | | ???# #??????????????????????????????????? | | ???# #??????????????????????????????????? | | ???# #### ????????????????????? | | ???# ????????????????????? | | ??## ##### ????????????????????? | | ??# ##???????#?????????????????????????? | | ??# ##????? #?????????????????????????? | | ??# =%= ##??? #?????????????????????????? | | ??# [ ##?# ### ##????????????????????? | +----------------------------------------------------+ Best States ------------- Heat Dissipation 39 Energy Generation 10 Energy Capacity 250 Matter Stores 300 Matter Capacity 300 Sight Range 16 Terrain Scan Range 16 Terrain Scan Density 10 Evasion (%) 44 Item Schematics ----------------- None Robot Schematics ------------------ None Fabricated ------------ Nothing Alien Tech Used ----------------- None Achievements -------------- None Challenges ------------ None Game ------ Seed PhasingCloakingLink Manual? 0 Play Time 00:35:54 Cumulative 40.2 hours Start 2024.04.11 @ 21:33:10 End 2024.04.12 @ 00:38:59 Sessions 4 Manual Loads 0 Difficulty Rogue Special Mode None Game No. 41 Rogue 41 Adventurer 0 Explorer 0 Win Type - Total 0 Types 0/0/0/0/0/0/0/0/0 Lore% 16 Gallery% 33 Achievement% 25 Wizard Run 0 Options --------- Layout 1 ASCII 0 Keyboard 1 Movement Vi Keybinds 0 Fullscreen 1 Font 24/Smallcaps Map View 50x35 Zoom Use 0% Tactical HUD 1 Map Filters NONE Filters NONE Steam 1 RUN: de940495-b7b1-4843-b3c1-32e16ef6dc82